Cogmind - Beta 11 @@@ ROGUE MODE // 2022.03.31 @ 10:51:32 Player: T-900 Result: Destroyed by S-27 Virus with Autogun Performance ------------- Evolutions (4) 2000 Regions Visited (5) 1000 Robots Destroyed (28) 140 Value Destroyed (979) 979 Prototype IDs (1) 20 Alien Tech Used (0) 0 Bonus (0) 0 TOTAL SCORE: 4139 Bonus ------- None Cogmind --------- Core Integrity 0/850 Matter 225/300 Energy 99/100 System Corruption 4% Temperature Cool (0) Movement Core (100) Ox1 Location -6/Factory Parts ------- > --- POWER (1) -------- Fusion Compressor > --- PROPULSION (6) --- (None) > --- UTILITY (4) ------ (None) > --- WEAPON (4) ------- (None) > --- INVENTORY (5) ---- Improved Ion Engine Peak State ------------ > --- POWER ------------ Nuclear Core > --- PROPULSION ------- Light Treads Light Treads Armored Huge Wheel Armored Huge Wheel > --- UTILITY ---------- Large Storage Unit Improved Trap Scanner Advanced Sensor Array Improved Shield Generator > --- WEAPON ----------- Field Laser Advanced Beam Rifle Heavy Laser Light Assault Rifle > --- INVENTORY -------- Light Ion Engine Improved Ion Engine Light Deuterium Engine Light Nuclear Core Improved Carbon-fiber Leg Transmission Jammer Arc Projector Plasma Rifle Ion Cannon Plasma Cannon Plasma Cannon Minigun Gauss Rifle Flak Gun [Rating: 52] Favorites ----------- Power Ion Engine Engine Ion Engine Power Core Nuclear Core Propulsion Aluminum Leg Treads Light Treads Leg Aluminum Leg Wheel Armored Huge Wheel Utility Large Storage Unit Device Improved Shield Generator Storage Large Storage Unit Protection Medium Armor Plating Weapon Light Assault Rifle Energy Gun Small Laser Energy Cannon Plasma Cannon Ballistic Gun Light Assault Rifle Ballistic Cannon Improved Light Cannon Build | -11 -10 -9 -8 -7 -6 ------- Run | Scr Mat Mat Mat Fac Fac Slots Evolved 8 | . . 2 2 2 2 Power . | . . . . . . Propulsion 4 | . . 1 1 1 1 Utility 2 | . . . . 1 1 Weapon 2 | . . 1 1 . . Parts Attached 65 | 6 5 5 11 12 26 Power 8 | 1 1 . 1 1 4 Engine 5 | 1 1 . 1 . 2 Core 3 | . . . . 1 2 Reactor . | . . . . . . Propulsion 21 | 2 2 3 4 4 6 Treads 7 | . 2 . 1 2 2 Leg 10 | . . 3 3 . 4 Wheel 4 | 2 . . . 2 . Hover . | . . . . . . Flight . | . . . . . . Utility 7 | 1 1 . . 2 3 Device 4 | . . . . 1 3 Storage 2 | 1 1 . . . . Processor . | . . . . . . Hackware . | . . . . . . Protection 1 | . . . . 1 . Artifact . | . . . . . . Weapon 29 | 2 1 2 6 5 13 Energy Gun 12 | . 1 . 4 1 6 Energy Cannon 4 | . . . . . 4 Ballistic Gun 12 | 2 . 2 1 4 3 Ballistic Cannon 1 | . . . 1 . . Launcher . | . . . . . . Special Weapon . | . . . . . . Impact Weapon . | . . . . . . Slashing Weapon . | . . . . . . Piercing Weapon . | . . . . . . Special Melee Weapon . | . . . . . . Unidentified Prototypes 1 | . . . . 1 . Corrupted Parts 2 | . . . . . 2 System Corruption 4 | . . . . . 4 Parts Lost 34 | . . . 7 1 26 Power 5 | . . . 1 . 4 Propulsion 11 | . . . 3 1 7 Utility 4 | . . . . . 4 Weapon 14 | . . . 3 . 11 Highest Loss Streak 16 | . . . 4 1 16 To Critical Strikes . | . . . . . . Average Slot Usage (%) 78 | . 84 80 83 80 66 Engine 5 | . 14 11 8 2 . Core 2 | . . . . 4 4 Treads 6 | . 15 . 2 4 9 Leg 12 | . . 32 30 10 1 Wheel 7 | . 12 . . 11 9 Device 2 | . . . . 2 8 Storage 8 | . 14 11 9 7 5 Protection 3 | . . . . 7 2 Energy Gun 12 | . 1 6 15 15 14 Ballistic Gun 13 | . 25 18 13 12 5 Naked Turns 13 | . . . . . 13 Heaviest Build 48 | 11 28 31 37 47 48 Greatest Support 56 | 26 40 30 45 56 56 Greatest Overweight (x) 12 | 3 . 1 1 12 10 Average Overweight (x) . | . . . . . . Largest Inventory Capacity 15 | 8 15 15 15 15 15 Average Capacity 14 | 7 13 15 15 15 13 Most Carried 15 | 7 12 15 14 15 15 Average Carried 12 | 3 9 11 12 14 11 Final Capacity 15 | 8 15 15 15 15 5 Final Carried 15 | 6 11 15 13 15 1 Class Distribution -------------------- 37% | Mutant 32% | Tank 13% | Scavenger-Tank 11% | Scavenger-Gunner Dominant Class ---------------- Mutant | -10/Materials Mutant | -9/Materials Scavenger-Gunner | -8/Materials Tank | -7/Factory Tank | -6/Factory Resources | -11 -10 -9 -8 -7 -6 ----------- Run | Scr Mat Mat Mat Fac Fac Matter Collected 1090 | 219 179 95 148 156 293 Remotely . | . . . . . . Salvage Created 1380 | . 255 289 293 199 344 Parts 68 | . 21 11 15 16 5 Haulers Intercepted . | . . . . . . Recyclers Shooed 3 | . . 2 1 . . Parts Field Recycled . | . . . . . . Retrieved Matter . | . . . . . . Parts Self-Destructed . | . . . . . . Prevented . | . . . . . . Kills | -11 -10 -9 -8 -7 -6 ------- Run | Scr Mat Mat Mat Fac Fac Combat Hostiles Destroyed 23 | . 8 4 5 2 4 Guns 22 | . 8 4 4 2 4 Cannons 1 | . . . 1 . . Classes Destroyed 7 | . 2 3 1 1 . Tunneler 1 | . . . . 1 . Recycler 4 | . . 1 1 1 1 Swarmer 3 | . 3 . . . . Grunt 12 | . 5 2 2 . 3 Brawler 1 | . . 1 . . . Sentry 5 | . . 1 2 1 1 Hunter 2 | . . . 1 1 . Best Kill Streak 5 | . 5 2 3 1 3 Combat Bots Only 5 | . 5 2 1 1 3 Max Kills in Single Turn 2 | . 2 1 1 1 1 Gunslinging 1 | . 1 . . . . Exploded . | . . . . . . Melee . | . . . . . . Uniques/NPCs Destroyed . | . . . . . . Combat | -11 -10 -9 -8 -7 -6 -------- Run | Scr Mat Mat Mat Fac Fac Damage Taken 5664 | . 432 269 933 882 3148 Core 1409 | . 177 69 140 169 854 Absorbed by Shields 159 | . . . . 159 . Core Remaining (%) 72 | 100 29 82 74 75 . Volleys Fired 97 | . 22 21 20 13 21 Largest 4 | . 2 3 4 4 4 Hottest 213 | . 40 83 139 182 213 Shots Fired 241 | . 44 45 59 48 45 Gun 229 | . 44 45 48 48 44 Cannon 12 | . . . 11 . 1 Launcher . | . . . . . . Special . | . . . . . . Kinetic 171 | . 44 27 38 29 33 Thermal 68 | . . 18 21 19 10 Explosive . | . . . . . . Electromagnetic 2 | . . . . . 2 Robot Hit Streak 19 | . 4 13 5 7 19 Robot Miss Streak 4 | . 2 3 3 4 2 Penetration Max . | . . . . . . Secondary Targets 2 | . 2 . . . . Max Gunslinging Chain 1 | . 1 . . . . Shots Hit Robots 165 | . 27 34 30 30 44 Core Hits 82 | . 15 11 15 11 30 Critical Kills . | . . . . . . Critical Parts Destroyed . | . . . . . . Critical Strikes 8 | . . . 1 4 3 Burn 8 | . . . 1 4 3 Melee Attacks . | . . . . . . Impact . | . . . . . . Slashing . | . . . . . . Piercing . | . . . . . . Sneak Attacks . | . . . . . . Combat Hostiles . | . . . . . . Follow-up Attacks . | . . . . . . Damage Inflicted 2274 | . 285 358 436 408 787 Guns 2133 | . 285 358 321 408 761 Cannons 141 | . . . 115 . 26 Explosions . | . . . . . . Melee . | . . . . . . Ramming . | . . . . . . Kinetic 1544 | . 285 182 297 212 568 Thermal 705 | . . 176 139 196 194 Explosive . | . . . . . . Electromagnetic 25 | . . . . . 25 Impact . | . . . . . . Slashing . | . . . . . . Piercing . | . . . . . . Highest Corruption 4 | . 3 . . . 4 Average Corruption 3 | . 2 . . . 3 Corruption Purged . | . . . . . . Corruption Blocked . | . . . . . . Effects 4 | . . . . . 4 Matter Fused 2 | . . . . . 2 Heat Flow Errors 1 | . . . . . 1 Energy Discharges 1 | . . . . . 1 Overload Shots . | . . . . . . Overflow Damage 29 | . . . 29 . . Projectiles . | . . . . . . Explosions 29 | . . . 29 . . Melee . | . . . . . . Knockbacks 1 | . . . 1 . . Impact . | . . . . . . Kinetic 1 | . . . 1 . . Secondary . | . . . . . . Self-Inflicted Damage 155 | . . . 155 . . Shots 2 | . . . 2 . . Rammed . | . . . . . . Targets Rammed . | . . . . . . Kicked . | . . . . . . Crushed . | . . . . . . Highest Temperature 255 | . 18 72 255 236 226 Average Temperature 67 | . 7 21 99 70 72 Received Heat Transfer 1943 | . 210 90 360 242 1041 Effects 1 | . . . 1 . . Interference 1 | . . . 1 . . Siege Activations . | . . . . . . Robots Corrupted . | . . . . . . Combat Hostiles . | . . . . . . Parts Fried . | . . . . . . Impact Corruptions . | . . . . . . Robots Melted . | . . . . . . Combat Hostiles . | . . . . . . Parts Melted . | . . . . . . Heat Transferred 2168 | . . 400 421 729 618 Parts Sabotaged . | . . . . . . Parts Stolen . | . . . . . . Parts Stripped . | . . . . . . Power Chain Reactions . | . . . . . . Missiles Intercepted . | . . . . . . Alert | -11 -10 -9 -8 -7 -6 ------- Run | Scr Mat Mat Mat Fac Fac Peak Influence 336 | . 220 246 336 237 55 Initial 152 | . . 92 103 152 . Average 120 | . 131 175 201 142 3 Maximum Alert Level 1 | . 1 1 1 1 . Low Security (%) 67 | 100 83 52 40 56 100 Level 1 32 | . 16 47 59 43 . Level 2 . | . . . . . . Level 3 . | . . . . . . Level 4 . | . . . . . . Level 5 . | . . . . . . High Security . | . . . . . . Max Security . | . . . . . . Squads Dispatched 9 | . 1 . 1 4 3 Investigation . | . . . . . . Extermination 1 | . . . . 1 . Reinforcement 6 | . 1 . 1 3 1 Assault . | . . . . . . Garrison 2 | . . . . . 2 Intercept . | . . . . . . Searches Triggered . | . . . . . . Construction Impeded . | . . . . . . Haulers Reinforced . | . . . . . . Active Scanning Responses . | . . . . . . Cargo Convoy Interrupts . | . . . . . . Stealth | -11 -10 -9 -8 -7 -6 --------- Run | Scr Mat Mat Mat Fac Fac Distress Signals 5 | . 2 1 1 . 1 Communications Jammed . | . . . . . . Distress Signals . | . . . . . . Times Spotted 72 | . 17 6 15 16 18 Peak Tracking Total 12 | . 8 3 8 10 12 Tactical Retreats 4 | . 1 . 2 . 1 Traps | -11 -10 -9 -8 -7 -6 ------- Run | Scr Mat Mat Mat Fac Fac Traps Triggered 4 | . 2 . . 2 . Indirectly . | . . . . . . Trap Hack Attempts . | . . . . . . Triggered . | . . . . . . Disarmed . | . . . . . . Reprogrammed . | . . . . . . Reused . | . . . . . . Traps Extracted . | . . . . . . Installed . | . . . . . . Triggered . | . . . . . . Machines | -11 -10 -9 -8 -7 -6 ---------- Run | Scr Mat Mat Mat Fac Fac Machines Disabled 3 | . . . 2 1 . Max in Single Turn 2 | . . . 2 1 . Machines Sabotaged . | . . . . . . Garrisons Compromised . | . . . . . . Overloaded Fab Kills . | . . . . . . Hacking | -11 -10 -9 -8 -7 -6 --------- Run | Scr Mat Mat Mat Fac Fac Machines Accessed 3 | . . 1 1 1 . Terminals 3 | . . 1 1 1 . Fabricators . | . . . . . . Repair Stations . | . . . . . . Recycling Units . | . . . . . . Scanalyzers . | . . . . . . Garrison Access . | . . . . . . Total Hacks 4 | . . 2 1 1 . Successful 2 | . . 1 1 . . Failed 2 | . . 1 . 1 . Catastrophic . | . . . . . . Database Lockouts . | . . . . . . Manual . | . . . . . . Terminals 4 | . . 2 1 1 . Fabricators . | . . . . . . Repair Stations . | . . . . . . Recycling Units . | . . . . . . Scanalyzers . | . . . . . . Garrison Access . | . . . . . . Terminal Hacks 2 | . . 1 1 . . Emergency Access Points 2 | . . 1 1 . . Fabricator Hacks . | . . . . . . Repair Station Hacks . | . . . . . . Recycling Unit Hacks . | . . . . . . Scanalyzer . | . . . . . . Garrison Access Hacks . | . . . . . . Unauthorized Hacks . | . . . . . . Terminals . | . . . . . . Fabricators . | . . . . . . Repair Stations . | . . . . . . Recycling Units . | . . . . . . Scanalyzers . | . . . . . . Garrison Access . | . . . . . . Data Cores Recovered . | . . . . . . Used . | . . . . . . Hacking Detections 1 | . . . . 1 . Full Trace Events . | . . . . . . Feedback Events . | . . . . . . Feedback Blocked . | . . . . . . Robot Schematics Acquired . | . . . . . . Robots Built . | . . . . . . Authchips . | . . . . . . Time . | . . . . . . Total Robot Build Rating . | . . . . . . Part Schematics Acquired . | . . . . . . Parts Built . | . . . . . . Authchips . | . . . . . . Time . | . . . . . . Total Part Build Rating . | . . . . . . Parts Repaired . | . . . . . . Time . | . . . . . . Parts Recycled . | . . . . . . Recycled Matter . | . . . . . . Retrieved Matter . | . . . . . . Retrieved Components . | . . . . . . Parts Scanalyzed . | . . . . . . Part Schematics Acquired . | . . . . . . Parts Damaged . | . . . . . . Bothacking | -11 -10 -9 -8 -7 -6 ------------ Run | Scr Mat Mat Mat Fac Fac Used RIF Installer . | . . . . . . Robots Hacked . | . . . . . . Non-combat . | . . . . . . Combat . | . . . . . . Robot Hacks Applied . | . . . . . . Relay Couplers Released . | . . . . . . Fabnet Peak Effective % . | . . . . . . Robots Rewired . | . . . . . . Allies Hacked . | . . . . . . Hacks Repelled . | . . . . . . Allies | -11 -10 -9 -8 -7 -6 -------- Run | Scr Mat Mat Mat Fac Fac Total Allies . | . . . . . . Largest Group . | . . . . . . Highest-Rated Group . | . . . . . . Highest-Rated Ally . | . . . . . . Total Orders . | . . . . . . Ally Attacks . | . . . . . . Total Damage . | . . . . . . Kills . | . . . . . . Allies Corrupted . | . . . . . . Allies Melted . | . . . . . . Intel | -11 -10 -9 -8 -7 -6 ------- Run | Scr Mat Mat Mat Fac Fac Robot Analysis Total . | . . . . . . Derelict Logs Recovered . | . . . . . . Drone Launches . | . . . . . . Drone Recoveries . | . . . . . . Exploration | -11 -10 -9 -8 -7 -6 ------------- Run | Scr Mat Mat Mat Fac Fac Turns Passed 2261 | 73 324 263 332 809 460 Spaces Moved 1407 | 51 163 145 201 583 264 Core 79 | 30 . . . 1 48 Treads 147 | . 91 . . 56 . Legs 375 | . . 145 201 . 29 Wheels 806 | 21 72 . . 526 187 Hover . | . . . . . . Flight . | . . . . . . Fastest Speed 50 | 50 90 120 120 100 50 Average Speed 112 | 107 129 122 122 107 99 Slowest Speed 650 | 200 160 190 190 650 550 Overloaded Moves . | . . . . . . Propulsion Burnouts . | . . . . . . Robots Hopped . | . . . . . . Cave-ins Triggered . | . . . . . . Exploration Rate (%) 18 | 4 27 18 29 26 8 Regions Visited 5 Branch Regions . Pre-discovered Areas . | . . . . . . Known Exits Taken . | . . . . . . Unknown Exits Taken 5 | 1 1 1 1 1 . Scrap Searched . | . . . . . . Spaces Dug . | . . . . . . Terrain Destroyed 44 | . . . 44 . . Melee . | . . . . . . Projectile 1 | . . . 1 . . AOE 43 | . . . 43 . . Terrain Rammed . | . . . . . . Walls Destroyed . | . . . . . . Machines Disabled . | . . . . . . Actions | -11 -10 -9 -8 -7 -6 --------- Run | Scr Mat Mat Mat Fac Fac Total 1912 | 68 238 191 244 746 425 Wait 256 | . 34 13 5 105 99 Move 1402 | 50 162 144 200 582 264 Hop . | . . . . . . Pick Up 62 | 12 10 6 8 16 10 Fast Attach 4 | . . . . 4 . Attach 53 | 6 2 3 10 7 25 Detach 4 | . . 1 . 2 1 Swap 8 | . 3 2 1 1 1 Drop 26 | . 5 1 . 16 4 Fire 97 | . 22 21 20 13 21 Melee . | . . . . . . Ram . | . . . . . . Kick . | . . . . . . Crush . | . . . . . . Escape Stasis . | . . . . . . Rewire . | . . . . . . Trap . | . . . . . . Miscellaneous . | . . . . . . Route ------- -11/Scrapyard -10/Materials (discovered 2 exits: *Mat / [*Min]) -9/Materials -8/Materials -7/Factory -6/Factory History --------- Turn | Location | Event 23 | -11/Scrapyard | Discovered new exit (range 15) 74 | -11/Scrapyard | Entered Materials 274 | -10/Materials | Discovered new exit (range 13) 316 | -10/Materials | Build established: Mutant 336 | -10/Materials | Core integrity fell below 50% 372 | -10/Materials | Discovered new exit (range 15) 398 | -10/Materials | Entered another Materials area 398 | -9/Materials | Evolved 2 slots: Propulsion x1, Weapon x1 642 | -9/Materials | Discovered new exit (range 3) 661 | -9/Materials | Entered another Materials area 661 | -8/Materials | Evolved 2 slots: Propulsion x1, Weapon x1 837 | -8/Materials | Lost 3 parts (2n1w) 906 | -8/Materials | Lost 4 parts (1p1n2w) 975 | -8/Materials | Discovered new exit (range 16) 993 | -8/Materials | Entered Factory 993 | -7/Factory | Evolved 2 slots: Propulsion x1, Utility x1 1288 | -7/Factory | Build established: Scavenger-Tank 1591 | -7/Factory | Build established: Tank 1787 | -7/Factory | Assembled infested ambush trap array 1789 | -7/Factory | Discovered new exit (range 12) 1802 | -7/Factory | Entered another Factory area 1802 | -6/Factory | Evolved 2 slots: Propulsion x1, Utility x1 2096 | -6/Factory | Garrison activated, responded to threat 2199 | -6/Factory | Lost 16 parts (3p4n2u7w) 2208 | -6/Factory | Core integrity fell below 50% 2230 | -6/Factory | Core integrity fell below 20% 2262 | -6/Factory | Destroyed by S-27 Virus with Autogun Last Messages --------------- 02214_ T-07 Excavator destroyed. 02214_ Fusion Modulator explodes. 02214_ K-01 Serf destroyed. 02214_ Fusion Modulator explodes. 02214_ Carbon-fiber Leg destroyed. 02214_ Fusion Modulator explodes. 02214_ Ion Cannon destroyed. 02214_ Plasma Rifle destroyed. 02214_ Imp. Carbon-fiber Leg destroyed. 02214_ Carbon-fiber Leg destroyed. 02214_ Imp. Trap Scanner destroyed. 02215_ Dropped Lrg. Storage Unit. 02216_ K-01 Serf collects debris. 02229_ System corrupted: Energy discharge (-12). 02237_ Lgt. Nuclear Core destroyed. 02242_ Transmission Jammer destroyed. 02245_ System corrupted: Heat flow error (+263). 02247_ Plasma Cannon destroyed. 02255_ Acquired Fusion Compressor. 02260_ Adv. Beam Rifle destroyed. Map ----- +----------------------------------------------------+ | ?????????????????????????????????????????????????? | | ?????????????????????????????????????????????????? | | ?????????????????????????????????????????????????? | | ?????????????????????????????????????????????????? | | ?????????????????????????????????????????????????? | | ?????????????????????????????????????????????????? | | ?????????????????????????????????????????????????? | | ?????????????????????????????????????????????????? | | ?????????????????????????????????????????????????? | | ?????????????????????????????????????????????????? | | ?????????????????????????????????????????????????? | | ?????????????????????????????????????????????????? | | ?????????????????????????????????????????????????? | | ?????????????????????????????????????????????????? | | ?????????????????????????????????????????????????? | | ?????????????????????????????????????????????????? | | ?????????????????????????????????????????????????? | | ?????????????????????????????????????????????????? | | ?????????????????????????????????????????????????? | | ?????????????????????????????????????????????????? | | ????????????????????????#########+#??????????????? | | ????????????????????????# [ ??????????????? | | ????????????????????????# ??????????????? | | ????????????????????????# """"""""" #???????????? | | ??????????############### ##??????????? | | ????????? R /@ """"""""" + ??????????? | | ????????? # # ??????????? | | ????????? + """"""""" # ??????????? | | ????????? s # # ??????????? | | ????????? ss # " " # ??????????? | | ??????????###+#########?# g "Y" # ??????????? | | ????????????????????????# ss """ # #?????????? | | ????????????????????????# s b # ?????????? | | ????????????????????????########g##### #?????????? | | ???????????????????????????????# #???# #?????????? | | ???????????????????????????????# #???# #?????????? | | ???????????????????????????????# #???# #?????????? | | ????????????????????????######## ##### ########??? | | ??????????????????????# # #??? | | ????????????????????????########/##/# # #??? | | ?????????????????????????????# # # """ #??? | | ?????????????????????????????# / / """ #### | | ?????????????????????????????# """ #### """ + | | ?????????????????????????????# """ #??# #### | | ?????????????????????????????# """ #??###/##+#??? | | ?????????????????????????????# #????# #??? | | ?????????????????????????????########????# #??? | | ?????????????????????????????????????????# #??? | | ????????????????????????????????????####?# #### | | ????????????????????????????????????+ ?# | +----------------------------------------------------+ Best States ------------- Heat Dissipation 37 Energy Generation 25 Energy Capacity 250 Matter Stores 300 Matter Capacity 300 Sight Range 16 Robot Scan Range 16 Terrain Scan Density 10 Jamming Range 12 Armor Coverage 225 Evasion (%) 55 Recoil Reduction 2 Item Schematics ----------------- None Robot Schematics ------------------ None Fabricated ------------ Nothing Alien Tech Used ----------------- None Achievements -------------- None Challenges ------------ None Game ------ Seed SegregatorAuthchipRail Manual? 0 Play Time 00:46:12 Cumulative 23.9 hours Start 2022.03.31 @ 09:40:49 End 2022.03.31 @ 10:51:32 Sessions 1 Manual Loads 0 Difficulty Rogue Special Mode None Game No. 73 Rogue 73 Adventurer 0 Explorer 0 Win Type - Total 0 Types 0/0/0/0/0/0/0/0/0 Lore% 12 Gallery% 26 Achievement% 20 Wizard Run 0 Options --------- ASCII 0 Keyboard 0 Movement Mouse Keybinds 0 Fullscreen 1 Font 18/SmallcapsGlow Map View 76x50 Tactical HUD 1 Map Filters NONE Filters NONE Steam 1 RUN: fe4fbe31-ea0f-4934-ab50-682fbba63f4e